[Event "Festival Groningen-A 2024"]
[Site "Groningen"]
[Date "2024.12.30"]
[Round "9.9"]
[White "De Jong, Migchiel"]
[Black "Vijayakumar, Rishi"]
[Result "1-0"]
[ECO "A04"]
[WhiteElo "2275"]
[BlackElo "2204"]
[Annotator "RC"]
[PlyCount "151"]
[EventDate "2024.12.21"]
[EventType "swiss"]
[EventCountry "NED"]
[SourceTitle "playchess.com"]
[Source "ChessBase"]
[SourceQuality "1"]
[TimeControl "40/5400+30:1800+30"]

1. Nf3 {[%emt 0:00:14]} Nf6 {[%emt 0:00:20]} 2. g3 {[%emt 0:01:58]} c5 {[%emt 0:00:12]} 3. Bg2 {[%emt 0:00:51]} Nc6 {[%emt 0:00:12]} 4. O-O {[%emt 0:00:55]} e5 {[%emt 0:00:14]} 5. c3 {[%emt 0:02:47]} d5 {[%emt 0:00:20]} 6. d4 {[%emt 0:00:47]} e4 {[%emt 0:00:14]} 7. Ne5 {[%emt 0:00:27]} Qb6 {[%emt 0:00:41]} 8. Nxc6 {[%emt 0:07:35]} bxc6 {[%emt 0:00:12]} 9. Nd2 {[%emt 0:00:55]} cxd4 {[%emt 0:16:32]} 10. cxd4 {[%emt 0:00:11]} Be7 {[%emt 0:00:12]} 11. Nb3 {[%emt 0:01:09]} O-O {[%emt 0:02:47]} 12. Qc2 {[%emt 0:00:36]} Ba6 {[%emt 0:06:51]} 13. Rd1 {[%emt 0:06:12]} Nd7 {[%emt 0:06:46]} 14. Be3 {[%emt 0:02:12]} Rab8 {[%emt 0:01:35]} 15. Rac1 {[%emt 0:02:09]} Bc4 {[%emt 0:04:38]} 16. Bxe4 {[%emt 0:01:46]} Nf6 {[%emt 0:14:12]} 17. Bd3 {[%emt 0:02:02]} Bxb3 {[%emt 0:00:08]} 18. axb3 {[%emt 0:01:17]} Qxb3 {[%emt 0:01:25]} 19. Qxb3 {[%emt 0:02:03]} Rxb3 {[%emt 0:00:02]} 20. Rxc6 {[%emt 0:00:11]} a5 {[%emt 0:11:08]} 21. Ra1 {[%emt 0:01:46]} Ra8 {[%emt 0:02:06]} 22. Bd2 {[%emt 0:01:28]} a4 {[%emt 0:01:15]} 23. Bc3 {[%emt 0:05:13]} a3 {[%emt 0:04:40]} 24. bxa3 {[%emt 0:00:36]} Rbxa3 {[%emt 0:00:14]} 25. Rxa3 {[%emt 0:00:24]} Bxa3 {[%emt 0:00:02]} 26. Ra6 {[%emt 0:01:21]} Rxa6 {[%emt 0:00:09]} 27. Bxa6 {[%emt 0:00:02]} Kf8 {[%emt 0:03:55]} 28. Bd3 {[%emt 0:00:43]} Ne4 {[%emt 0:01:47]} 29. Be1 {[%emt 0:03:37]} f5 {[%emt 0:01:49]} 30. Kg2 {[%emt 0:00:52]} g6 {[%emt 0:01:21]} 31. h3 {[%emt 0:02:04]} h5 {[%emt 0:01:03]} 32. Ba5 {[%emt 0:03:40]} Bd6 {[%emt 0:01:04]} 33. e3 {[%emt 0:01:23]} Ke7 {[%emt 0:02:08]} 34. Bb6 {[%emt 0:00:53]} Ke6 {[%emt 0:00:49]} 35. Bb5 {[%emt 0:00:21]} Nf6 {[%emt 0:03:02]} 36. Ba5 {[%emt 0:01:18]} Ke7 {[%emt 0:00:23]} 37. Be1 {[%emt 0:01:22]} Ke6 {[%emt 0:03:32]} 38. Be2 {[%emt 0:01:09]} Be7 {[%emt 0:01:58]} 39. f3 {[%emt 0:02:32]} Bd6 {[%emt 0:01:25]} 40. Bd3 {[%emt 0:01:13]} Ba3 {[%emt 0:02:31]} 41. Bd2 {[%emt 0:32:34]} Bd6 {[%emt 0:30:16]} 42. Kf2 {[%emt 0:03:08]} Ke7 {[%emt 0:00:58]} 43. Be1 {[%emt 0:02:18]} Ke6 {[%emt 0:02:42]} 44. Ke2 {[%emt 0:01:54]} Nh7 {[%emt 0:03:51]} 45. e4 {[%emt 0:01:27]} fxe4 {[%emt 0:00:00]} 46. fxe4 {[%emt 0:00:00]} dxe4 {[%emt 0:00:00]} 47. Bxe4 {[%emt 0:00:00]} Kf6 {[%emt 0:00:00]} 48. h4 {[%emt 0:00:00]} Nf8 {[%emt 0:00:00]} 49. Kf3 {[%emt 0:00:00]} g5 {[%emt 0:00:00]} 50. Bd2 {[%emt 0:00:00]} gxh4 {[%emt 0:00:00]} 51. gxh4 {[%emt 0:00:00]} Ne6 {[%emt 0:00:00]} 52. Be3 {[%emt 0:00:00]} Nc7 {[%emt 0:00:00]} 53. Bg5+ {[%emt 0:00:00]} Kf7 {[%emt 0:00:00]} 54. Bf5 {[%emt 0:00:00]} Be7 {[%emt 0:00:00]} 55. Ke4 {[%emt 0:00:00]} Bf6 {[%emt 0:00:00]} 56. Bd7 {[%emt 0:00:00]} Kg6 {[%emt 0:00:00]} 57. Bf4 {[%emt 0:00:00]} Bd8 {[%emt 0:00:00]} 58. Bg3 {[%emt 0:00:00]} Kf6 {[%emt 0:00:00]} 59. d5 {[%emt 0:00:00]} Ke7 {[%emt 0:00:00]} 60. Bc6 {[%emt 0:00:00]} Ne8 {[%emt 0:00:00]} 61. Kf5 {[%emt 0:00:00]} Nd6+ {[%emt 0:00:36]} 62. Kg6 {[%emt 0:00:00]} Ne4 {[%emt 0:00:19]} 63. Be1 {[%emt 0:00:00]} Kd6 {[%emt 0:00:28]} 64. Kf5 {[%emt 0:00:00]} Nc5 {[%emt 0:03:08]} 65. Bg3+ {[%emt 0:00:00]} Ke7 {[%emt 0:00:01]} 66. d6+ {[%emt 0:00:00]} Kf7 {[%emt 0:01:55]} 67. Bf2 {[%emt 0:00:00]} Nd3 {[%emt 0:00:14]} 68. Bg3 {[%emt 0:00:00]} Nc5 {[%emt 0:00:08]} 69. Bd5+ {[%emt 0:00:00]} Kg7 {[%emt 0:00:50]} 70. Be5+ {[%emt 0:00:00]} Kh6 {[%emt 0:00:53]} 71. Bd4 {[%emt 0:00:00]} Nd7 {[%emt 0:00:42]} 72. Ke6 {[%emt 0:00:00]} Nb6 {[%emt 0:01:38]} 73. Be4 {[%emt 0:00:00]} Nc4 {[%emt 0:00:09]} 74. d7 {[%emt 0:00:00]} Nb6 {[%emt 0:00:38]} 75. Kf7 {[%emt 0:00:00]} Bf6 {[%emt 0:03:10]} 76. Be3+ {[%emt 0:00:00]} 1-0

[Event "Festival Groningen-A 2024"]
[Site "Groningen"]
[Date "2024.12.30"]
[Round "9.10"]
[White "Mareau, Timothe"]
[Black "Koster, Ramon"]
[Result "0-1"]
[ECO "B23"]
[WhiteElo "2168"]
[BlackElo "2330"]
[Annotator "RC"]
[PlyCount "42"]
[EventDate "2024.12.21"]
[EventType "swiss"]
[EventCountry "NED"]
[SourceTitle "playchess.com"]
[Source "ChessBase"]
[SourceQuality "1"]
[TimeControl "40/5400+30:1800+30"]

1. e4 {[%emt 0:00:04]} c5 {[%emt 0:00:05]} 2. Nc3 {[%emt 0:00:14]} d6 {[%emt 0:00:11]} 3. f4 {[%emt 0:00:09]} g6 {[%emt 0:00:09]} 4. Nf3 {[%emt 0:00:08]} Bg7 {[%emt 0:00:07]} 5. Bc4 {[%emt 0:00:37]} Nc6 {[%emt 0:00:21]} 6. O-O {[%emt 0:00:27]} e6 {[%emt 0:00:18]} 7. d4 {[%emt 0:00:11]} cxd4 {[%emt 0:00:45]} 8. Nb5 {[%emt 0:00:21]} a6 {[%emt 0:00:33]} 9. Nbxd4 {[%emt 0:00:09]} Nxd4 {[%emt 0:00:13]} 10. Nxd4 {[%emt 0:00:08]} Nf6 {[%emt 0:00:56]} 11. f5 {[%emt 0:04:51]} gxf5 {[%emt 0:01:55]} 12. exf5 {[%emt 0:00:15]} e5 {[%emt 0:00:05]} 13. Ne2 {[%emt 0:05:51]} b5 {[%emt 0:10:33]} 14. Bb3 {[%emt 0:09:08]} Bb7 {[%emt 0:00:15]} 15. Ng3 {[%emt 0:02:13]} Qb6+ {[%emt 0:01:30]} 16. Kh1 {[%emt 0:01:20]} h5 {[%emt 0:00:16]} 17. h4 {[%emt 0:09:26]} Bh6 {[%emt 0:44:31]} 18. Bxh6 {[%emt 0:08:00]} Rxh6 {[%emt 0:00:20]} 19. Qd2 {[%emt 0:00:06]} Rh7 {[%emt 0:04:00]} 20. Qg5 {[%emt 0:02:58]} Ke7 {[%emt 0:00:51]} 21. Bxf7 {[%emt 0:02:44]} Rxf7 {[%emt 0:04:38]} 0-1

[Event "Festival Groningen-A 2024"]
[Site "Groningen"]
[Date "2024.12.30"]
[Round "9.11"]
[White "Albers, Sasa"]
[Black "Weber, Samuel"]
[Result "1/2-1/2"]
[ECO "C95"]
[WhiteElo "2268"]
[BlackElo "2263"]
[Annotator "RC"]
[PlyCount "71"]
[EventDate "2024.12.21"]
[EventType "swiss"]
[EventCountry "NED"]
[SourceTitle "playchess.com"]
[Source "ChessBase"]
[SourceQuality "1"]
[TimeControl "40/5400+30:1800+30"]

1. e4 {[%emt 0:00:39]} e5 {[%emt 0:00:11]} 2. Nf3 {[%emt 0:00:04]} Nc6 {[%emt 0:00:11]} 3. Bb5 {[%emt 0:00:07]} a6 {[%emt 0:00:35]} 4. Ba4 {[%emt 0:00:16]} Nf6 {[%emt 0:00:07]} 5. O-O {[%emt 0:00:08]} Be7 {[%emt 0:00:05]} 6. Re1 {[%emt 0:00:29]} b5 {[%emt 0:00:06]} 7. Bb3 {[%emt 0:00:05]} d6 {[%emt 0:00:04]} 8. c3 {[%emt 0:00:26]} O-O {[%emt 0:00:08]} 9. h3 {[%emt 0:00:03]} Nb8 {[%emt 0:00:06]} 10. d4 {[%emt 0:00:07]} Nbd7 {[%emt 0:00:06]} 11. Nbd2 {[%emt 0:00:21]} Bb7 {[%emt 0:00:11]} 12. Bc2 {[%emt 0:00:08]} Re8 {[%emt 0:00:06]} 13. Nf1 {[%emt 0:00:05]} Bf8 {[%emt 0:00:04]} 14. Ng3 {[%emt 0:00:05]} a5 {[%emt 0:00:04]} 15. Bg5 {[%emt 0:05:31]} h6 {[%emt 0:03:11]} 16. Bd2 {[%emt 0:00:05]} a4 {[%emt 0:03:05]} 17. Bd3 {[%emt 0:01:57]} c6 {[%emt 0:00:14]} 18. Qc1 {[%emt 0:08:30]} Qb6 {[%emt 0:06:04]} 19. Be3 {[%emt 0:05:36]} Qa5 {[%emt 0:03:29]} 20. b4 {[%emt 0:05:33]} axb3 {[%emt 0:01:51]} 21. axb3 {[%emt 0:00:26]} Qxa1 {[%emt 0:02:02]} 22. Qxa1 {[%emt 0:00:07]} Rxa1 {[%emt 0:00:06]} 23. Rxa1 {[%emt 0:00:03]} Ra8 {[%emt 0:00:06]} 24. Rxa8 {[%emt 0:00:55]} Bxa8 {[%emt 0:00:19]} 25. dxe5 {[%emt 0:09:06]} dxe5 {[%emt 0:01:45]} 26. b4 {[%emt 0:00:22]} Bb7 {[%emt 0:01:07]} 27. Kf1 {[%emt 0:08:59]} Ne8 {[%emt 0:12:04]} 28. Nd2 {[%emt 0:02:21]} Nc7 {[%emt 0:03:37]} 29. Nb3 {[%emt 0:01:16]} g6 {[%emt 0:05:42]} 30. Ne2 {[%emt 0:02:29]} Kg7 {[%emt 0:03:16]} 31. Nec1 {[%emt 0:02:40]} Ne8 {[%emt 0:05:53]} 32. Na5 {[%emt 0:05:31]} Nd6 {[%emt 0:05:56]} 33. Ncb3 {[%emt 0:00:24]} Ba8 {[%emt 0:03:55]} 34. Nc5 {[%emt 0:02:22]} Nxc5 {[%emt 0:03:48]} 35. Bxc5 {[%emt 0:02:41]} Ne8 {[%emt 0:04:05]} 36. Bxf8+ {[%emt 0:00:17]} 1/2-1/2

[Event "Festival Groningen-A 2024"]
[Site "Groningen"]
[Date "2024.12.30"]
[Round "9.12"]
[White "Duijker, Rick"]
[Black "Slagboom, Leandro"]
[Result "0-1"]
[ECO "E94"]
[WhiteElo "2146"]
[BlackElo "2370"]
[Annotator "RC"]
[PlyCount "88"]
[EventDate "2024.12.21"]
[EventType "swiss"]
[EventCountry "NED"]
[SourceTitle "playchess.com"]
[Source "ChessBase"]
[SourceQuality "1"]
[TimeControl "40/5400+30:1800+30"]

1. c4 {[%emt 0:00:05]} Nf6 {[%emt 0:02:11]} 2. Nf3 {[%emt 0:00:20]} g6 {[%emt 0:00:20]} 3. Nc3 {[%emt 0:00:29]} Bg7 {[%emt 0:00:07]} 4. e4 {[%emt 0:00:17]} d6 {[%emt 0:00:06]} 5. d4 {[%emt 0:00:14]} O-O {[%emt 0:00:06]} 6. Be2 {[%emt 0:00:24]} Na6 {[%emt 0:00:28]} 7. O-O {[%emt 0:01:20]} e5 {[%emt 0:00:07]} 8. Be3 {[%emt 0:05:21]} Qe7 {[%emt 0:01:13]} 9. dxe5 {[%emt 0:05:59]} dxe5 {[%emt 0:00:06]} 10. Nd5 {[%emt 0:00:37]} Qd8 {[%emt 0:01:02]} 11. Bg5 {[%emt 0:08:11]} c6 {[%emt 0:16:25]} 12. Nxf6+ {[%emt 0:03:34]} Bxf6 {[%emt 0:00:55]} 13. Qxd8 {[%emt 0:03:31]} Bxd8 {[%emt 0:00:05]} 14. Be3 {[%emt 0:07:12]} Bb6 {[%emt 0:11:22]} 15. Bxb6 {[%emt 0:08:56]} axb6 {[%emt 0:00:17]} 16. Nxe5 {[%emt 0:01:35]} Re8 {[%emt 0:02:22]} 17. Nf3 {[%emt 0:03:16]} Rxe4 {[%emt 0:11:58]} 18. Bd3 {[%emt 0:00:38]} Re8 {[%emt 0:06:24]} 19. Rfe1 {[%emt 0:01:46]} Be6 {[%emt 0:01:27]} 20. a3 {[%emt 0:05:39]} Nc5 {[%emt 0:09:22]} 21. Bf1 {[%emt 0:00:38]} Nb3 {[%emt 0:02:00]} 22. Rad1 {[%emt 0:01:40]} Red8 {[%emt 0:00:42]} 23. h3 {[%emt 0:04:26]} h6 {[%emt 0:00:18]} 24. g4 {[%emt 0:04:12]} g5 {[%emt 0:03:18]} 25. Kg2 {[%emt 0:02:48]} Kg7 {[%emt 0:00:48]} 26. Kg3 {[%emt 0:02:06]} Kf6 {[%emt 0:00:29]} 27. h4 {[%emt 0:02:12]} gxh4+ {[%emt 0:03:46]} 28. Nxh4 {[%emt 0:06:54]} Nd2 {[%emt 0:01:12]} 29. Be2 {[%emt 0:04:02]} Ra4 {[%emt 0:12:51]} 30. Nf3 {[%emt 0:05:30]} Nxf3 {[%emt 0:01:55]} 31. Kxf3 {[%emt 0:03:09]} Rxd1 {[%emt 0:01:06]} 32. Rxd1 {[%emt 0:00:15]} Bxc4 {[%emt 0:00:56]} 33. Rd7 {[%emt 0:03:14]} Bd5+ {[%emt 0:07:47]} 34. Kg3 {[%emt 0:00:35]} Rd4 {[%emt 0:00:27]} 35. b4 {[%emt 0:02:40]} Rd2 {[%emt 0:01:25]} 36. Bf1 {[%emt 0:00:25]} Ra2 {[%emt 0:00:14]} 37. Rxb7 {[%emt 0:00:51]} Rxa3+ {[%emt 0:00:03]} 38. Kh4 {[%emt 0:00:36]} b5 {[%emt 0:00:08]} 39. f4 {[%emt 0:02:25]} Rb3 {[%emt 0:02:46]} 40. Bxb5 {[%emt 0:00:50]} cxb5 {[%emt 0:00:36]} 41. Rxb5 {[%emt 0:30:13]} Be6 {[%emt 0:31:07]} 42. f5 {[%emt 0:00:34]} Bc4 {[%emt 0:00:00]} 43. Rb6+ {[%emt 0:00:00]} Kg7 {[%emt 0:00:00]} 44. Kh5 {[%emt 0:00:00]} Rh3# {[%emt 0:02:13]} 0-1

[Event "Festival Groningen-A 2024"]
[Site "Groningen"]
[Date "2024.12.30"]
[Round "9.13"]
[White "Van der Hagen, Loek"]
[Black "Kanis, Sierk"]
[Result "1-0"]
[ECO "B11"]
[WhiteElo "2315"]
[BlackElo "2116"]
[Annotator "RC"]
[PlyCount "101"]
[EventDate "2024.12.21"]
[EventType "swiss"]
[EventCountry "NED"]
[SourceTitle "playchess.com"]
[Source "ChessBase"]
[SourceQuality "1"]
[TimeControl "40/5400+30:1800+30"]

1. e4 {[%emt 0:00:03]} c6 {[%emt 0:00:07]} 2. Nc3 {[%emt 0:00:07]} d5 {[%emt 0:00:05]} 3. Nf3 {[%emt 0:00:05]} dxe4 {[%emt 0:00:05]} 4. Nxe4 {[%emt 0:00:06]} Nf6 {[%emt 0:00:05]} 5. Qe2 {[%emt 0:00:22]} Nxe4 {[%emt 0:00:06]} 6. Qxe4 {[%emt 0:00:05]} Be6 {[%emt 0:00:04]} 7. c4 {[%emt 0:00:37]} g6 {[%emt 0:00:21]} 8. Qe5 {[%emt 0:00:17]} Rg8 {[%emt 0:00:08]} 9. d4 {[%emt 0:00:29]} Bg7 {[%emt 0:00:25]} 10. Qe3 {[%emt 0:06:01]} Na6 {[%emt 0:01:57]} 11. a3 {[%emt 0:19:00]} Qc7 {[%emt 0:10:31]} 12. Bd3 {[%emt 0:06:12]} O-O-O {[%emt 0:03:21]} 13. O-O {[%emt 0:01:55]} Bf5 {[%emt 0:21:01]} 14. Bxf5+ {[%emt 0:06:13]} gxf5 {[%emt 0:00:06]} 15. Rb1 {[%emt 0:01:40]} Bf6 {[%emt 0:02:23]} 16. h3 {[%emt 0:21:11]} Rg6 {[%emt 0:03:21]} 17. Kh1 {[%emt 0:00:06]} Bh8 {[%emt 0:05:23]} 18. b4 {[%emt 0:04:11]} Re6 {[%emt 0:01:54]} 19. Qg5 {[%emt 0:00:42]} Bxd4 {[%emt 0:05:48]} 20. Qxf5 {[%emt 0:05:04]} Qd7 {[%emt 0:03:09]} 21. Qxf7 {[%emt 0:08:33]} Rf6 {[%emt 0:02:53]} 22. Qh5 {[%emt 0:00:29]} Rg8 {[%emt 0:13:19]} 23. Rd1 {[%emt 0:09:57]} e5 {[%emt 0:03:47]} 24. Nxe5 {[%emt 0:00:54]} Qg7 {[%emt 0:01:22]} 25. Qg4+ {[%emt 0:00:39]} Qxg4 {[%emt 0:01:18]} 26. Nxg4 {[%emt 0:00:04]} Rd6 {[%emt 0:01:45]} 27. Be3 {[%emt 0:02:25]} c5 {[%emt 0:01:51]} 28. bxc5 {[%emt 0:00:53]} Bxc5 {[%emt 0:00:07]} 29. Bxc5 {[%emt 0:01:24]} Rxd1+ {[%emt 0:00:08]} 30. Rxd1 {[%emt 0:00:04]} Nxc5 {[%emt 0:00:03]} 31. Ne5 {[%emt 0:01:02]} Ne4 {[%emt 0:03:31]} 32. Kg1 {[%emt 0:00:57]} Rf8 {[%emt 0:00:23]} 33. f3 {[%emt 0:01:04]} Nc3 {[%emt 0:00:35]} 34. Rd3 {[%emt 0:00:41]} Ne2+ {[%emt 0:00:14]} 35. Kf2 {[%emt 0:00:14]} Nf4 {[%emt 0:00:06]} 36. Rd4 {[%emt 0:00:31]} h5 {[%emt 0:00:06]} 37. Nd3 {[%emt 0:00:51]} Nxd3+ {[%emt 0:01:06]} 38. Rxd3 {[%emt 0:00:01]} Rf4 {[%emt 0:00:09]} 39. Rc3 {[%emt 0:00:35]} h4 {[%emt 0:00:07]} 40. g4 {[%emt 0:00:33]} hxg3+ {[%emt 0:00:32]} 41. Kxg3 {[%emt 0:30:06]} Rd4 {[%emt 0:30:06]} 42. f4 {[%emt 0:00:25]} Kd7 {[%emt 0:00:04]} 43. Kg4 {[%emt 0:00:27]} Ke6 {[%emt 0:00:07]} 44. Kg5 {[%emt 0:00:47]} Kf7 {[%emt 0:00:08]} 45. c5 {[%emt 0:00:33]} Rd5+ {[%emt 0:00:26]} 46. Kg4 {[%emt 0:01:45]} Kg6 {[%emt 0:00:14]} 47. c6 {[%emt 0:00:06]} bxc6 {[%emt 0:00:52]} 48. Rxc6+ {[%emt 0:00:04]} Kg7 {[%emt 0:00:05]} 49. Rc7+ {[%emt 0:00:04]} Kg6 {[%emt 0:00:04]} 50. Rxa7 {[%emt 0:00:03]} Rg5+ {[%emt 0:00:11]} 51. Kf3 {[%emt 0:00:10]} 1-0

[Event "Festival Groningen-A 2024"]
[Site "Groningen"]
[Date "2024.12.30"]
[Round "9.14"]
[White "Schoorl, Rob"]
[Black "Khoo-Thwe, Louis"]
[Result "1-0"]
[ECO "A09"]
[WhiteElo "2295"]
[BlackElo "2124"]
[Annotator "RC"]
[PlyCount "29"]
[EventDate "2024.12.21"]
[EventType "swiss"]
[EventCountry "NED"]
[SourceTitle "playchess.com"]
[Source "ChessBase"]
[SourceQuality "1"]
[TimeControl "40/5400+30:1800+30"]

1. Nf3 {[%emt 0:00:09]} d5 {[%emt 0:00:06]} 2. c4 {[%emt 0:00:11]} dxc4 {[%emt 0:00:11]} 3. e4 {[%emt 0:00:19]} Nf6 {[%emt 0:00:41]} 4. Nc3 {[%emt 0:00:20]} a6 {[%emt 0:01:14]} 5. a4 {[%emt 0:08:18]} e6 {[%emt 0:01:13]} 6. Bxc4 {[%emt 0:01:32]} c5 {[%emt 0:00:15]} 7. d4 {[%emt 0:09:05]} cxd4 {[%emt 0:00:34]} 8. Nxd4 {[%emt 0:00:55]} Qc7 {[%emt 0:04:26]} 9. Qe2 {[%emt 0:05:09]} Nc6 {[%emt 0:04:20]} 10. Nxc6 {[%emt 0:04:24]} Qxc6 {[%emt 0:03:40]} 11. O-O {[%emt 0:02:10]} b6 {[%emt 0:09:03]} 12. Nd5 {[%emt 0:22:14]} Bd6 {[%emt 0:08:01]} 13. Nxf6+ {[%emt 0:06:14]} gxf6 {[%emt 0:00:12]} 14. Bd5 {[%emt 0:00:05]} Bxh2+ {[%emt 0:04:37]} 15. Kh1 {[%emt 0:00:23]} 1-0

[Event "Festival Groningen-A 2024"]
[Site "Groningen"]
[Date "2024.12.30"]
[Round "9.15"]
[White "Ritzerveld, Noah"]
[Black "Van Rootselaar, Rik"]
[Result "1-0"]
[ECO "C11"]
[WhiteElo "2182"]
[BlackElo "2265"]
[Annotator "RC"]
[PlyCount "89"]
[EventDate "2024.12.21"]
[EventType "swiss"]
[EventCountry "NED"]
[SourceTitle "playchess.com"]
[Source "ChessBase"]
[SourceQuality "1"]
[TimeControl "40/5400+30:1800+30"]

1. e4 {[%emt 0:00:05]} e6 {[%emt 0:00:41]} 2. d4 {[%emt 0:00:08]} d5 {[%emt 0:00:03]} 3. Nc3 {[%emt 0:00:08]} Nf6 {[%emt 0:00:04]} 4. e5 {[%emt 0:00:06]} Nfd7 {[%emt 0:00:04]} 5. f4 {[%emt 0:00:08]} c5 {[%emt 0:00:15]} 6. Nf3 {[%emt 0:00:07]} Nc6 {[%emt 0:00:05]} 7. Be3 {[%emt 0:00:05]} Rb8 {[%emt 0:01:03]} 8. Qd2 {[%emt 0:12:16]} Qa5 {[%emt 0:00:40]} 9. dxc5 {[%emt 0:03:03]} Bxc5 {[%emt 0:01:53]} 10. Bxc5 {[%emt 0:01:42]} Nxc5 {[%emt 0:01:06]} 11. Nb5 {[%emt 0:04:42]} Qxd2+ {[%emt 0:04:58]} 12. Kxd2 {[%emt 0:01:12]} Ke7 {[%emt 0:02:07]} 13. c3 {[%emt 0:05:38]} h6 {[%emt 0:05:35]} 14. h4 {[%emt 0:03:53]} Bd7 {[%emt 0:01:33]} 15. Ke3 {[%emt 0:04:24]} a6 {[%emt 0:04:24]} 16. Nbd4 {[%emt 0:00:58]} b5 {[%emt 0:04:20]} 17. b4 {[%emt 0:08:05]} Na4 {[%emt 0:03:43]} 18. Nxc6+ {[%emt 0:04:45]} Bxc6 {[%emt 0:00:40]} 19. Kd4 {[%emt 0:01:51]} Rhc8 {[%emt 0:04:28]} 20. Nd2 {[%emt 0:03:28]} Be8 {[%emt 0:05:33]} 21. Rh3 {[%emt 0:05:26]} Rc7 {[%emt 0:01:37]} 22. Nb3 {[%emt 0:02:17]} Rbc8 {[%emt 0:03:02]} 23. Rc1 {[%emt 0:00:52]} Nb6 {[%emt 0:05:53]} 24. g4 {[%emt 0:06:20]} Nc4 {[%emt 0:01:37]} 25. Nc5 {[%emt 0:01:52]} Ra7 {[%emt 0:02:01]} 26. Bxc4 {[%emt 0:01:57]} dxc4 {[%emt 0:01:07]} 27. Ne4 {[%emt 0:03:12]} a5 {[%emt 0:03:38]} 28. Nd6 {[%emt 0:04:33]} Rca8 {[%emt 0:01:05]} 29. a4 {[%emt 0:01:06]} Rb8 {[%emt 0:11:26]} 30. axb5 {[%emt 0:01:53]} Bxb5 {[%emt 0:00:43]} 31. bxa5 {[%emt 0:00:33]} Rxa5 {[%emt 0:01:14]} 32. Rb1 {[%emt 0:01:29]} Rd8 {[%emt 0:00:17]} 33. Kc5 {[%emt 0:03:32]} Ba6+ {[%emt 0:02:28]} 34. Kb6 {[%emt 0:03:45]} Ra2 {[%emt 0:00:24]} 35. Rhh1 {[%emt 0:01:05]} Kd7 {[%emt 0:05:55]} 36. Ra1 {[%emt 0:02:19]} Rb8+ {[%emt 0:01:10]} 37. Kc5 {[%emt 0:00:57]} Rbb2 {[%emt 0:01:04]} 38. Rhb1 {[%emt 0:01:58]} Rd2 {[%emt 0:00:06]} 39. Rxa2 {[%emt 0:00:56]} Rxa2 {[%emt 0:00:04]} 40. Rb8 {[%emt 0:01:58]} Ra5+ {[%emt 0:06:30]} 41. Kb6 {[%emt 0:31:27]} Ra3 {[%emt 0:30:18]} 42. Ra8 {[%emt 0:01:46]} Rb3+ {[%emt 0:00:13]} 43. Kc5 {[%emt 0:00:00]} Rxc3 {[%emt 0:00:00]} 44. Rxa6 {[%emt 0:00:00]} Rf3 {[%emt 0:00:00]} 45. Ra7+ {[%emt 0:00:00]} 1-0

[Event "Festival Groningen-A 2024"]
[Site "Groningen"]
[Date "2024.12.30"]
[Round "9.16"]
[White "Okuno, Rion"]
[Black "Madularea, David"]
[Result "0-1"]
[ECO "C11"]
[WhiteElo "2027"]
[BlackElo "2245"]
[Annotator "RC"]
[PlyCount "74"]
[EventDate "2024.12.21"]
[EventType "swiss"]
[EventCountry "NED"]
[SourceTitle "playchess.com"]
[Source "ChessBase"]
[SourceQuality "1"]
[TimeControl "40/5400+30:1800+30"]

1. e4 {[%emt 0:00:05]} e6 {[%emt 0:00:30]} 2. d4 {[%emt 0:00:05]} d5 {[%emt 0:00:04]} 3. Nc3 {[%emt 0:00:06]} Nf6 {[%emt 0:00:07]} 4. e5 {[%emt 0:00:03]} Nfd7 {[%emt 0:00:04]} 5. f4 {[%emt 0:00:05]} c5 {[%emt 0:00:03]} 6. Nf3 {[%emt 0:00:04]} Nc6 {[%emt 0:00:04]} 7. Be3 {[%emt 0:00:28]} Qb6 {[%emt 0:00:24]} 8. Na4 {[%emt 0:00:27]} Qa5+ {[%emt 0:00:06]} 9. c3 {[%emt 0:00:10]} b6 {[%emt 0:00:04]} 10. Bd2 {[%emt 0:05:40]} c4 {[%emt 0:00:11]} 11. b4 {[%emt 0:01:16]} Nxb4 {[%emt 0:00:04]} 12. cxb4 {[%emt 0:05:49]} Bxb4 {[%emt 0:00:07]} 13. Bxb4 {[%emt 0:05:10]} Qxb4+ {[%emt 0:01:34]} 14. Kf2 {[%emt 0:01:30]} b5 {[%emt 0:01:56]} 15. Nc5 {[%emt 0:00:09]} Nxc5 {[%emt 0:00:05]} 16. dxc5 {[%emt 0:00:14]} Qxc5+ {[%emt 0:00:09]} 17. Qd4 {[%emt 0:00:53]} Qxd4+ {[%emt 0:03:04]} 18. Nxd4 {[%emt 0:00:06]} Bd7 {[%emt 0:00:21]} 19. a3 {[%emt 0:19:53]} Ke7 {[%emt 0:04:24]} 20. Be2 {[%emt 0:05:23]} a5 {[%emt 0:09:15]} 21. Rhb1 {[%emt 0:07:16]} Rab8 {[%emt 0:00:27]} 22. Nc2 {[%emt 0:02:02]} f6 {[%emt 0:08:09]} 23. Ke3 {[%emt 0:11:58]} fxe5 {[%emt 0:11:58]} 24. fxe5 {[%emt 0:00:04]} Rhf8 {[%emt 0:00:28]} 25. Nd4 {[%emt 0:08:23]} Rb6 {[%emt 0:07:36]} 26. Bg4 {[%emt 0:07:58]} Rfb8 {[%emt 0:04:32]} 27. Kd2 {[%emt 0:02:03]} R8b7 {[%emt 0:02:24]} 28. Kc2 {[%emt 0:02:20]} Be8 {[%emt 0:01:45]} 29. Kd2 {[%emt 0:06:33]} Bg6 {[%emt 0:02:48]} 30. Rb2 {[%emt 0:09:17]} b4 {[%emt 0:00:28]} 31. axb4 {[%emt 0:00:00]} axb4 {[%emt 0:00:07]} 32. Rxb4 {[%emt 0:00:00]} Rxb4 {[%emt 0:01:07]} 33. Nc6+ {[%emt 0:00:00]} Kd7 {[%emt 0:00:50]} 34. Nxb4 {[%emt 0:00:00]} Rxb4 {[%emt 0:00:07]} 35. Ra7+ {[%emt 0:00:00]} Kc6 {[%emt 0:00:19]} 36. Bxe6 {[%emt 0:00:00]} d4 {[%emt 0:00:22]} 37. Bd7+ {[%emt 0:02:04]} Kb6 {[%emt 0:00:45]} 0-1